bitfinex-derivatives/quotes_ETHF0:USTF0_20260119
["timestamp","ask_amount","ask_price","bid_price","bid_amount"]
[1768791283299,0.90341148,3207.5,3206.1,0.00263159]
[1768791283608,0.90341148,3207.4,3206.1,0.00263159]
[1768791283794,3.57530063,3207.6,3206.1,3.46031027]
[1768791283999,0.90340141,3207.5,3206.1,3.46031027]
[1768791284198,0.90340141,3207.4,3206.1,3.46031027]
[1768791284507,4.40988711,3207.6,3206.1,3.46031027]
[1768791284709,0.90410998,3207.5,3206.1,3.46031027]
[1768791284896,4.40988711,3207.6,3206.1,3.46031027]
[1768791284897,1.29764736,3207.3,3206.1,3.46031027]
[1768791285296,0.90502306,3207.2,3206.1,3.46031027]
[1768791285605,1.29764736,3207.3,3206.1,3.46031027]
[1768791285808,0.90503775,3207.2,3206.1,3.46031027]
[1768791286108,0.83458648,3207.5,3206.1,3.46031027]
[1768791286310,0.83458648,3207.3,3206.1,3.46031027]
[1768791286510,0.90503615,3207.2,3206.1,3.46031027]
[1768791287202,0.90503615,3207.1,3206.1,3.46031027]
[1768791287504,0.90503615,3207.0,3206.1,3.46031027]
[1768791287705,0.83458648,3207.2,3206.1,3.46031027]
[1768791289302,0.83458648,3207.1,3206.1,0.00263159]
[1768791290094,0.83458648,3207.1,3206.1,3.46031027]
[1768791290302,0.83458648,3206.9,3206.1,3.46031027]
[1768791293310,0.90747261,3206.8,3206.1,3.46031027]
[1768791293505,0.90747261,3206.7,3206.1,3.46031027]
[1768791293706,0.83458648,3207.0,3206.1,3.46031027]
[1768791296913,0.83458648,3206.8,3206.1,0.00263159]
[1768791297108,0.83458648,3206.8,3205.4,3.15901973]
[1768791297109,0.83458648,3206.7,3205.4,3.15901973]
[1768791297308,1.74447753,3206.7,3205.4,3.15901973]
[1768791297511,0.90989105,3206.6,3205.4,3.15901973]
[1768791297712,0.90989105,3206.5,3205.4,3.15901973]
[1768791297910,0.91456963,3206.4,3205.4,3.15901973]
[1768791298104,0.00467858,3206.4,3205.4,3.16149639]
[1768791301012,0.83458648,3206.8,3205.4,3.16149639]
[1768791301319,1.74230133,3206.8,3205.4,3.16149639]
[1768791301518,0.90771485,3206.7,3205.4,3.16149639]
[1768791301724,0.83458648,3206.8,3205.4,3.16149639]
[1768791302213,0.83458648,3206.8,3205.6,3.15277973]
[1768791302517,0.83458648,3206.9,3205.6,3.15277973]
[1768791305119,0.83458648,3207.0,3205.6,3.15277973]
[1768791305716,0.83458648,3207.0,3205.7,1.767]
[1768791306919,0.83458648,3206.9,3205.7,1.767]
[1768791308211,0.83458648,3207.0,3205.7,1.767]
[1768791310723,0.83458648,3206.9,3205.7,1.767]
[1768791311020,0.83458648,3206.9,3205.6,4.91977973]
[1768791311216,0.83458648,3207.0,3205.6,4.91977973]
[1768791312323,0.83458648,3207.0,3205.6,3.15277973]
[1768791313723,1.73624279,3207.0,3205.6,3.15277973]
[1768791313925,0.90165631,3206.9,3205.6,3.15277973]
[1768791314124,0.90165631,3206.8,3205.6,3.15277973]
[1768791314424,0.83458648,3207.0,3205.6,3.15277973]
[1768791315828,4.51816457,3206.6,3205.4,0.00871666]
[1768791316026,0.90167922,3206.5,3205.4,0.00871666]
[1768791316734,0.90167922,3206.5,3205.4,3.16149639]
[1768791316929,0.90152321,3206.4,3205.4,3.16149639]
[1768791317113,0.83458648,3206.7,3205.4,3.16149639]
[1768791318929,0.901413,3206.6,3205.5,3.15277973]
[1768791319227,0.83458648,3206.9,3205.5,3.15277973]
[1768791321625,1.73588124,3206.8,3205.5,4.91977973]
[1768791321932,0.90129476,3206.7,3205.5,4.91977973]
[1768791322133,0.90129476,3206.6,3205.4,0.00871666]
[1768791322427,0.90129476,3206.5,3205.4,0.00871666]
[1768791322629,4.24798688,3206.7,3205.4,0.00871666]
[1768791322824,0.90144214,3206.6,3205.4,0.00871666]
[1768791323024,0.90144214,3206.5,3205.4,0.00871666]
[1768791323224,0.90144214,3206.4,3205.4,0.00871666]
[1768791323424,4.24798688,3206.7,3205.4,0.00871666]
[1768791323624,0.90142741,3206.6,3205.4,0.00871666]
[1768791323828,0.90142741,3206.5,3205.4,0.00871666]
[1768791324122,0.90142741,3206.4,3205.4,0.00871666]
[1768791324328,4.24798688,3206.7,3205.4,0.00871666]
[1768791324517,4.31483882,3206.6,3205.4,0.00871666]
[1768791324720,0.90143842,3206.5,3205.4,0.00871666]
[1768791326736,0.90143842,3206.4,3205.6,0.00467858]
[1768791326926,0.83458648,3206.6,3205.6,0.00467858]
[1768791327335,5.15198075,3206.6,3205.6,0.00467858]
[1768791327637,0.90399387,3206.5,3205.6,0.00467858]
[1768791327937,0.90399387,3206.4,3205.6,0.00467858]
[1768791328133,4.24798688,3206.6,3205.6,0.00467858]
[1768791328435,0.90388583,3206.5,3205.6,0.00467858]
[1768791328732,0.90388583,3206.4,3205.6,0.00467858]
[1768791328933,4.24798688,3206.6,3205.6,0.00467858]
[1768791329133,0.90388605,3206.5,3205.6,0.00467858]
[1768791329337,0.90388605,3206.4,3205.6,0.00467858]
[1768791329530,4.24798688,3206.6,3205.6,0.00467858]
[1768791329732,0.90383426,3206.5,3205.6,0.00467858]
[1768791330031,0.90383426,3206.4,3205.6,0.00467858]
[1768791330339,4.24798688,3206.6,3205.6,0.00467858]
[1768791330634,0.90381794,3206.5,3205.6,0.00467858]
[1768791330835,0.90381794,3206.4,3205.6,0.00467858]
[1768791331036,4.24798688,3206.6,3205.6,0.00467858]
[1768791331236,0.9038181,3206.5,3205.6,0.00467858]
[1768791331437,4.24798688,3206.6,3205.6,0.00467858]
[1768791331438,0.9038181,3206.4,3205.6,0.00467858]
[1768791331637,4.24798688,3206.6,3205.6,0.00467858]
[1768791331839,0.90378142,3206.5,3205.6,0.00467858]
[1768791332028,0.90378142,3206.4,3205.6,0.00467858]
[1768791332339,4.24798688,3206.6,3205.6,0.00467858]
[1768791332638,0.9037561,3206.5,3205.6,0.00467858]
[1768791332841,0.9037561,3206.4,3205.6,0.00467858]
[1768791333140,4.24798688,3206.6,3205.6,0.00467858]
[1768791333335,0.90374026,3206.5,3205.6,0.00467858]
[1768791333529,0.90374026,3206.4,3205.6,0.00467858]
[1768791333731,4.24798688,3206.6,3205.6,0.00467858]
[1768791333932,0.90374235,3206.5,3205.6,0.00467858]
[1768791334132,0.90374235,3206.4,3205.6,0.00467858]
[1768791334334,4.24798688,3206.6,3205.6,0.00467858]
[1768791334631,0.90373464,3206.5,3205.6,0.00467858]
[1768791334828,0.90373464,3206.4,3205.6,0.00467858]
[1768791335032,0.90373464,3206.3,3205.6,0.00467858]
[1768791335235,4.24798688,3206.6,3205.6,0.00467858]
[1768791335436,0.90376103,3206.5,3205.6,0.00467858]
[1768791335636,0.90376103,3206.4,3205.6,0.00467858]
[1768791335838,0.90376103,3206.3,3205.6,0.00467858]
[1768791336033,4.24798688,3206.6,3205.6,0.00467858]
[1768791336245,0.90523949,3206.5,3205.6,0.00467858]
[1768791336433,0.90523949,3206.4,3205.6,0.00467858]
[1768791336636,0.90523949,3206.3,3205.6,0.00467858]
[1768791336839,4.24798688,3206.6,3205.6,0.00467858]
[1768791337040,0.9052716,3206.5,3205.6,0.00467858]
[1768791337338,0.9052716,3206.4,3205.6,0.00467858]
[1768791337540,0.9052716,3206.3,3205.6,0.00467858]
[1768791337842,4.24798688,3206.6,3205.6,0.00467858]
[1768791338050,0.90531034,3206.5,3205.6,0.00467858]
[1768791338241,0.90531034,3206.4,3205.6,0.00467858]
[1768791338442,4.24798688,3206.6,3205.6,0.00467858]
[1768791338637,0.90534505,3206.5,3205.6,0.00467858]
[1768791338848,0.90534505,3206.4,3205.6,0.00467858]
[1768791339050,4.24798688,3206.6,3205.6,0.00467858]
[1768791339253,0.90534514,3206.5,3205.6,0.00467858]
[1768791339450,0.90534514,3206.4,3205.6,0.00467858]
[1768791339650,4.24798688,3206.6,3205.6,0.00467858]
[1768791339842,0.90540639,3206.5,3205.6,0.00467858]
[1768791340044,0.90540639,3206.4,3205.6,0.00467858]
[1768791340240,4.24798688,3206.6,3205.6,0.00467858]
[1768791340445,0.90549439,3206.5,3205.6,0.00467858]
[1768791340647,0.90549439,3206.4,3205.6,0.00467858]
[1768791340848,4.24798688,3206.6,3205.6,0.00467858]
[1768791341054,0.90549439,3206.5,3205.6,0.00467858]
[1768791341252,0.90549439,3206.4,3205.6,0.00467858]
[1768791341553,0.90549439,3206.3,3205.6,0.00467858]
[1768791341754,4.24798688,3206.6,3205.6,0.00467858]
[1768791341947,0.90557146,3206.5,3205.6,0.00467858]
[1768791342254,0.90557146,3206.4,3205.6,0.00467858]
[1768791342456,0.90557146,3206.3,3205.6,0.00467858]
[1768791342648,4.24798688,3206.6,3205.6,0.00467858]
[1768791342845,0.90566968,3206.5,3205.6,0.00467858]
[1768791343144,0.90566968,3206.4,3205.6,0.00467858]
[1768791343339,0.90566968,3206.3,3205.6,0.00467858]
[1768791343540,4.24798688,3206.6,3205.6,0.00467858]
[1768791343749,0.90597093,3206.5,3205.6,0.00467858]
[1768791343948,0.90597093,3206.4,3205.6,0.00467858]
[1768791344156,0.90597093,3206.3,3205.6,0.00467858]
[1768791344351,4.34793907,3206.6,3205.6,0.00467858]
[1768791344555,0.90613038,3206.5,3205.6,0.00467858]
[1768791344749,0.90613038,3206.4,3205.6,0.00467858]
[1768791344949,0.90613038,3206.3,3205.6,0.00467858]
[1768791345150,0.83458648,3206.5,3205.6,0.00467858]
[1768791345353,1.74093112,3206.5,3205.6,0.00467858]
[1768791347053,0.90634464,3206.4,3205.6,0.00467858]
[1768791347254,0.83458648,3206.7,3205.6,0.00467858]
[1768791348957,4.34793907,3206.7,3205.6,0.00467858]
[1768791349263,0.90723372,3206.6,3205.6,0.00467858]
[1768791349560,0.90723372,3206.5,3205.6,0.00467858]
[1768791349862,0.90723372,3206.4,3205.6,0.00467858]
[1768791350054,4.34793907,3206.7,3205.6,0.00467858]
[1768791350255,0.90734238,3206.6,3205.6,0.00467858]
[1768791350456,0.90734238,3206.5,3205.6,0.00467858]
[1768791350659,0.90734238,3206.4,3205.6,0.00467858]
[1768791350961,3.51335259,3206.6,3205.6,0.00467858]
[1768791351160,0.90734325,3206.5,3205.6,0.00467858]
[1768791351360,0.90734325,3206.4,3205.6,0.00467858]
[1768791351564,3.51335259,3206.6,3205.6,0.00467858]
[1768791351864,0.90742129,3206.5,3205.6,0.00467858]
[1768791352171,0.90742129,3206.4,3205.6,0.00467858]
[1768791352367,3.51335259,3206.6,3205.6,0.00467858]
[1768791352662,0.90744207,3206.5,3205.6,0.00467858]
[1768791352860,0.90744207,3206.4,3205.6,0.00467858]
[1768791353056,3.51335259,3206.6,3205.6,0.00467858]
[1768791353258,0.90744193,3206.5,3205.6,0.00467858]
[1768791353464,0.90744193,3206.4,3205.6,0.00467858]
[1768791353667,3.51335259,3206.6,3205.6,0.00467858]
[1768791353858,0.9074099,3206.5,3205.6,0.00467858]
[1768791354054,0.9074099,3206.4,3205.6,0.00467858]
[1768791354252,3.51335259,3206.6,3205.6,0.00467858]
[1768791354449,0.90738203,3206.5,3205.6,0.00467858]
[1768791354653,0.90738203,3206.4,3205.6,0.00467858]
[1768791354865,3.51335259,3206.6,3205.6,0.00467858]
[1768791355054,0.90795263,3206.5,3205.6,0.00467858]
[1768791355254,0.90795263,3206.4,3205.6,0.00467858]
[1768791355454,3.51335259,3206.6,3205.6,0.00467858]
[1768791355655,0.90792861,3206.5,3205.6,0.00467858]
[1768791355865,0.90792861,3206.4,3205.6,0.00467858]
[1768791356163,3.51335259,3206.6,3205.6,0.00467858]
[1768791356362,0.90790916,3206.5,3205.6,1.30275369]
[1768791356563,0.90790916,3206.4,3205.6,1.30275369]
[1768791356761,3.51335259,3206.6,3205.6,1.30275369]
[1768791356962,0.90790916,3206.5,3205.6,1.30275369]
[1768791357163,0.90790916,3206.4,3205.6,1.30275369]
[1768791357365,3.51335259,3206.6,3205.6,1.30275369]
[1768791357568,0.90789228,3206.5,3205.6,1.30275369]
[1768791357764,0.90789228,3206.4,3205.6,1.30275369]
[1768791357965,3.51335259,3206.6,3205.6,1.30275369]
[1768791358166,0.90787831,3206.5,3205.6,1.30275369]
[1768791358462,0.90787831,3206.4,3205.6,1.30275369]
[1768791358661,3.51335259,3206.6,3205.6,1.30275369]
[1768791358860,0.90786029,3206.5,3205.6,1.30275369]
[1768791359059,0.90786029,3206.4,3205.6,1.30275369]
[1768791359260,3.51335259,3206.6,3205.6,1.30275369]
[1768791359460,0.90784563,3206.5,3205.6,1.30275369]
[1768791359660,0.90784563,3206.4,3205.6,1.30275369]
[1768791359861,3.51335259,3206.6,3205.6,1.30275369]
[1768791360060,0.90784563,3206.5,3205.6,0.00467858]
[1768791360269,0.90784563,3206.4,3205.6,1.30275369]
[1768791360468,3.51335259,3206.6,3205.6,1.30275369]
[1768791360768,0.90784016,3206.5,3205.6,1.30275369]
[1768791360969,0.90784016,3206.4,3205.6,1.30275369]
[1768791361165,3.51335259,3206.6,3205.6,1.30275369]
[1768791361355,0.90783528,3206.5,3205.6,1.30275369]
[1768791361558,0.90783528,3206.4,3205.6,1.30275369]
[1768791361766,3.51335259,3206.6,3205.6,1.30275369]
[1768791361970,0.90818641,3206.5,3205.6,1.30275369]
[1768791362162,0.90818641,3206.4,3205.6,1.30275369]
[1768791362470,3.51335259,3206.6,3205.6,1.30275369]
[1768791362673,0.90818642,3206.5,3205.6,1.30275369]
[1768791362967,0.90818642,3206.4,3205.6,1.30275369]
[1768791363266,3.51335259,3206.6,3205.6,1.30275369]
[1768791363470,0.90818686,3206.5,3205.6,1.30275369]
[1768791363672,0.90818686,3206.4,3205.6,1.30275369]
[1768791363873,3.51335259,3206.6,3205.6,1.30275369]
[1768791364169,0.90819116,3206.5,3205.6,1.30275369]
[1768791364368,0.90819116,3206.4,3205.6,1.30275369]
[1768791364574,3.51335259,3206.6,3205.6,1.30275369]
[1768791364773,0.90821251,3206.5,3205.6,1.30275369]
[1768791364974,0.90821251,3206.4,3205.6,1.30275369]
[1768791365175,3.51335259,3206.6,3205.6,1.30275369]
[1768791365377,0.90845125,3206.5,3205.6,1.30275369]
[1768791365678,0.90845125,3206.4,3205.6,0.00467858]
[1768791365875,3.51335259,3206.6,3205.6,0.00467858]
[1768791366073,0.9084729,3206.5,3205.6,0.00467858]
[1768791366260,0.9084729,3206.4,3205.6,0.00467858]
[1768791366460,3.51335259,3206.6,3205.6,0.00467858]
[1768791366673,0.90848818,3206.5,3205.6,0.00467858]
[1768791366870,0.90848818,3206.4,3205.6,0.00467858]
[1768791367070,3.51335259,3206.6,3205.6,0.00467858]
[1768791367264,0.90851997,3206.5,3205.6,0.00467858]
[1768791367464,0.90851997,3206.4,3205.6,0.00467858]
[1768791367762,3.51335259,3206.6,3205.6,0.00467858]
[1768791367959,0.90850907,3206.5,3205.6,0.00467858]
[1768791368159,3.51335259,3206.6,3205.6,0.00467858]
[1768791368160,0.90850907,3206.4,3205.6,0.00467858]
[1768791368367,3.51335259,3206.6,3205.6,0.00467858]
[1768791368566,0.90853321,3206.5,3205.6,0.00467858]
[1768791368767,0.90853321,3206.4,3205.6,0.00467858]
[1768791368968,3.51335259,3206.6,3205.6,0.00467858]
[1768791369172,0.90853321,3206.5,3205.6,0.00467858]
[1768791369384,0.90853321,3206.4,3205.6,0.00467858]
[1768791369579,3.51335259,3206.6,3205.6,0.00467858]
[1768791369784,0.90857321,3206.5,3205.6,0.00467858]
[1768791369979,0.90857321,3206.4,3205.6,0.00467858]
[1768791370288,3.51335259,3206.6,3205.6,0.00467858]
[1768791370487,0.90860448,3206.5,3205.6,0.00467858]
[1768791370685,0.90860448,3206.4,3205.6,0.00467858]
[1768791370883,3.51335259,3206.6,3205.6,0.00467858]
[1768791371078,0.9086046,3206.5,3205.6,0.00467858]
[1768791371279,0.9086046,3206.4,3205.6,0.00467858]
[1768791371579,4.35544041,3206.6,3205.6,0.00467858]
[1768791371779,0.90864156,3206.5,3205.6,0.00467858]
[1768791371988,0.90864156,3206.4,3205.6,0.00467858]
[1768791372184,4.35544041,3206.6,3205.6,0.00467858]
[1768791372390,0.9086842,3206.5,3205.6,0.00467858]
[1768791372591,0.9086842,3206.4,3205.6,0.00467858]
[1768791372888,4.35544041,3206.6,3205.6,0.00467858]
[1768791373088,0.90880415,3206.5,3205.6,0.00467858]
[1768791373291,0.90880415,3206.4,3205.6,0.00467858]
[1768791373589,4.35544041,3206.6,3205.6,0.00467858]
[1768791373796,0.90885488,3206.5,3205.6,0.00467858]
[1768791374090,0.90885488,3206.4,3205.6,0.00467858]
[1768791374290,4.35544041,3206.6,3205.6,0.00467858]
[1768791374486,0.9089065,3206.5,3205.6,0.00467858]
[1768791374686,0.9089065,3206.4,3205.6,0.00467858]
[1768791374889,4.35544041,3206.6,3205.6,0.00467858]
[1768791375093,0.90905266,3206.5,3205.6,1.30275369]
[1768791375288,1.29807511,3206.2,3205.6,0.00467858]
[1768791375591,0.90923398,3206.1,3205.4,0.00871666]
[1768791375789,4.63340605,3206.2,3205.4,0.00871666]
[1768791375991,0.90922214,3206.1,3205.4,0.00871666]
[1768791376193,3.33533094,3206.2,3205.4,0.00871666]
[1768791376388,0.90906509,3206.1,3205.4,0.00871666]
[1768791376587,3.33533094,3206.2,3204.9,1.29807511]
[1768791376793,0.90906509,3206.1,3204.9,1.29807511]
[1768791376993,3.33533094,3206.2,3204.9,1.29807511]
[1768791377594,3.33533094,3206.2,3204.9,1.30102191]
[1768791379294,3.33533094,3206.2,3205.1,1.29807511]
[1768791386896,3.33533094,3206.2,3204.9,0.0029468]
[1768791387095,3.33533094,3206.2,3205.0,1.29807511]
[1768791400103,0.8467664,3206.4,3205.0,1.29807511]
[1768791400306,0.90883028,3206.3,3205.0,1.29807511]
[1768791400605,0.90883028,3206.2,3205.0,1.29807511]
[1768791400791,4.20562427,3206.4,3205.0,1.29807511]
[1768791400990,0.90882997,3206.3,3205.0,1.29807511]
[1768791401194,0.90882997,3206.2,3205.0,1.29807511]
[1768791401394,3.35885787,3206.3,3205.0,1.29807511]
[1768791401606,0.90889558,3206.2,3205.0,1.29807511]
[1768791401799,3.35885787,3206.3,3205.0,1.29807511]
[1768791402001,0.90889558,3206.2,3205.0,1.29807511]
[1768791402202,3.35885787,3206.3,3205.0,1.29807511]
[1768791402400,0.90898346,3206.2,3205.0,1.29807511]
[1768791402702,4.20094569,3206.3,3205.0,1.29807511]
[1768791402907,4.26785028,3206.2,3205.0,1.29807511]
[1768791403105,0.90899241,3206.1,3205.0,1.29807511]
[1768791403305,3.35885787,3206.2,3205.0,1.29807511]
[1768791403506,0.90857339,3206.1,3205.0,1.29807511]
[1768791403806,3.35885787,3206.2,3205.0,1.29807511]
[1768791404002,0.90856909,3206.1,3205.0,1.29807511]
[1768791404202,3.35885787,3206.2,3205.0,1.29807511]
[1768791404403,0.90871154,3206.1,3205.0,1.29807511]
[1768791404604,3.35885787,3206.2,3205.0,1.29807511]
[1768791404805,0.90871208,3206.1,3205.0,1.29807511]
[1768791405000,3.35885787,3206.2,3205.0,1.29807511]
[1768791405205,0.90871476,3206.1,3205.0,1.29807511]
[1768791405408,0.90871476,3206.0,3205.0,1.29807511]
[1768791405612,3.35885787,3206.2,3205.0,1.29807511]
[1768791405815,0.90895502,3206.1,3205.0,1.29807511]
[1768791406005,0.90895502,3206.0,3205.0,1.29807511]
[1768791406312,3.35885787,3206.2,3205.0,1.29807511]
[1768791406511,0.90893276,3206.1,3205.0,1.29807511]
[1768791406703,0.90893276,3206.0,3205.0,1.29807511]
[1768791406904,3.35885787,3206.2,3205.0,1.29807511]
[1768791407104,0.90892991,3206.1,3205.0,1.29807511]
[1768791407314,0.90892991,3206.0,3205.0,1.29807511]
[1768791407500,3.35885787,3206.2,3205.0,1.29807511]
[1768791407705,0.90890045,3206.1,3205.0,1.29807511]
[1768791407910,3.35885787,3206.2,3205.0,1.29807511]
[1768791408110,0.9088972,3206.1,3205.0,1.29807511]
[1768791408311,3.35885787,3206.2,3205.0,1.29807511]
[1768791408510,0.90889676,3206.1,3205.0,1.29807511]
[1768791408710,3.35885787,3206.2,3205.0,1.29807511]
[1768791408908,0.90889569,3206.1,3204.9,0.0029468]
[1768791409112,0.90890069,3206.0,3204.9,0.0029468]
[1768791409413,3.35885787,3206.2,3204.9,0.0029468]
[1768791409715,0.90888874,3206.1,3204.9,0.0029468]
[1768791409913,0.90888874,3206.0,3204.9,0.0029468]
[1768791410108,3.35885787,3206.2,3204.9,0.0029468]
[1768791410309,0.90887033,3206.1,3204.9,0.0029468]
[1768791410509,3.35885787,3206.2,3204.9,0.0029468]
[1768791410708,0.90886925,3206.1,3204.9,0.0029468]
[1768791410908,3.35885787,3206.2,3204.9,0.0029468]
[1768791411117,0.90886925,3206.1,3204.9,0.0029468]
[1768791411411,0.8467664,3206.4,3205.3,1.29843752]
[1768791411617,0.90881129,3206.3,3205.3,1.29843752]
[1768791411819,0.00467858,3206.4,3205.3,1.29843752]
[1768791412014,0.90881466,3206.3,3205.3,1.29843752]
[1768791412214,3.36353645,3206.4,3205.2,1.765]
[1768791412416,4.24486631,3206.3,3204.9,0.0029468]
[1768791412711,4.24486631,3206.2,3205.0,1.765]
[1768791412912,3.33713366,3206.2,3205.0,1.765]
[1768791413113,0.90775783,3206.1,3205.0,1.765]
[1768791413314,3.33713366,3206.2,3205.0,1.765]
[1768791413509,0.90776293,3206.1,3204.9,1.7679468]
[1768791413714,3.33713366,3206.2,3204.9,1.7679468]
[1768791413919,0.90776271,3206.1,3204.9,1.7679468]
[1768791414106,3.33713366,3206.2,3204.9,0.0029468]
[1768791414313,3.33713366,3205.8,3204.9,0.0029468]
[1768791414508,3.33713366,3205.6,3204.9,0.0029468]
[1768791414821,0.90788128,3205.5,3204.9,0.0029468]
[1768791415021,3.3400304,3205.6,3204.9,0.0029468]
[1768791415722,3.3400304,3205.6,3204.2,1.765]
[1768791416622,3.3400304,3205.6,3204.2,1.76898041]
[1768791433228,3.3400304,3205.6,3204.2,5.35754109]
[1768791443243,0.90418905,3205.5,3204.2,5.35754109]
[1768791443446,3.3400304,3205.6,3204.2,5.35754109]
[1768791443645,0.90420899,3205.5,3204.2,5.35754109]
[1768791443844,3.3400304,3205.6,3204.2,5.35754109]
[1768791444143,0.90421006,3205.5,3204.2,5.35754109]
[1768791444333,0.90421006,3205.4,3204.2,5.35754109]
[1768791444538,3.3400304,3205.6,3204.2,5.35754109]
[1768791444734,0.9051562,3205.5,3204.2,5.35754109]
[1768791444936,3.3400304,3205.6,3204.2,5.35754109]
[1768791445142,0.90513873,3205.5,3204.2,5.35754109]
[1768791445440,0.90513873,3205.4,3204.2,5.35754109]
[1768791445629,3.3400304,3205.6,3204.2,5.35754109]
[1768791445833,0.90519628,3205.5,3204.2,5.35754109]
[1768791446036,0.90519628,3205.4,3204.2,5.35754109]
[1768791446239,3.3400304,3205.6,3204.2,5.35754109]
[1768791446437,0.9051957,3205.5,3204.2,5.35754109]
[1768791446638,0.9051957,3205.4,3204.2,5.35754109]
[1768791446842,3.3400304,3205.6,3204.2,5.35754109]
[1768791447043,3.3400304,3205.6,3204.6,1.29843752]
[1768791447044,0.9051957,3205.5,3204.6,1.29843752]
[1768791447244,0.00289674,3205.6,3204.3,3.46526343]
[1768791448948,0.90402246,3205.5,3204.2,0.00398041]
[1768791449249,3.48322809,3205.6,3204.3,1.766]
[1768791449451,0.90406143,3205.5,3204.3,1.766]
[1768791449650,3.48322809,3205.6,3204.3,1.766]
[1768791449835,0.9040606,3205.5,3204.2,0.00398041]
[1768791450040,3.48322809,3205.6,3204.3,1.766]
[1768791450240,0.90406023,3205.5,3204.3,1.766]
[1768791450440,3.48322809,3205.6,3204.3,1.766]
[1768791450641,0.90405693,3205.5,3204.3,1.766]
[1768791450946,3.48322809,3205.6,3204.3,1.766]
[1768791451148,0.90404458,3205.5,3204.3,1.766]
[1768791451352,3.48322809,3205.6,3204.3,1.766]
[1768791451549,0.90404468,3205.5,3204.3,1.766]
[1768791451740,3.48322809,3205.6,3204.3,1.766]
[1768791451940,0.90403396,3205.5,3204.3,1.766]
[1768791452241,3.48322809,3205.6,3204.3,1.766]
[1768791452437,0.90403343,3205.5,3204.3,1.766]
[1768791452739,3.48322809,3205.6,3204.3,1.766]
[1768791452940,0.90405796,3205.5,3204.3,1.766]
[1768791453242,3.48322809,3205.6,3204.3,1.766]
[1768791453440,0.90405766,3205.5,3204.3,1.766]
[1768791453737,3.48322809,3205.6,3204.3,1.766]
[1768791453937,0.90405445,3205.5,3204.3,1.766]
[1768791454144,3.48322809,3205.6,3204.3,1.766]
[1768791454344,0.90404908,3205.5,3204.3,1.766]
[1768791454545,3.48322809,3205.6,3204.3,1.766]
[1768791454744,0.90405512,3205.5,3204.3,1.766]
[1768791454955,3.48322809,3205.6,3204.3,1.766]
[1768791455152,0.90405511,3205.5,3204.3,1.766]
[1768791455352,3.48322809,3205.6,3204.3,1.766]
[1768791455569,0.90405554,3205.5,3204.3,1.766]
[1768791455745,3.48322809,3205.6,3204.3,1.766]
[1768791455945,0.90405463,3205.5,3204.3,1.766]
[1768791456144,3.48322809,3205.6,3204.3,1.766]
[1768791456443,0.90406016,3205.5,3204.3,1.766]
[1768791456642,3.48322809,3205.6,3204.3,1.766]
[1768791456839,0.90405559,3205.5,3204.3,1.766]
[1768791457046,3.48322809,3205.6,3204.3,1.766]
[1768791457238,0.90405624,3205.5,3204.3,1.766]
[1768791457444,3.48322809,3205.6,3204.3,1.766]
[1768791457652,0.90406285,3205.5,3204.3,1.766]
[1768791457853,3.48322809,3205.6,3204.3,1.766]
[1768791458044,0.90405704,3205.5,3204.3,1.766]
[1768791458350,3.48322809,3205.6,3204.3,1.766]
[1768791458552,0.9040586,3205.5,3204.3,1.766]
[1768791458754,3.48322809,3205.6,3204.3,1.766]
[1768791458952,0.90404933,3205.5,3204.3,1.766]
[1768791459143,3.48322809,3205.6,3204.3,1.766]
[1768791459344,0.90404868,3205.5,3204.3,1.766]
[1768791459652,3.48322809,3205.6,3204.3,1.766]
[1768791459853,0.90405011,3205.5,3204.3,1.766]
[1768791460053,3.48322809,3205.6,3204.3,1.766]
[1768791460257,0.90405332,3205.5,3204.3,1.766]
[1768791460459,3.48322809,3205.6,3204.3,1.766]
[1768791460658,0.90403919,3205.5,3204.3,1.766]
[1768791460859,3.48322809,3205.6,3204.3,1.766]
[1768791461157,0.90403556,3205.5,3204.3,4.89786044]
[1768791461358,0.00289674,3205.6,3204.3,4.89786044]
[1768791461560,0.90402354,3205.5,3204.3,4.89786044]
[1768791461747,0.00289674,3205.6,3204.3,4.89786044]
[1768791461947,0.90403001,3205.5,3204.3,4.89786044]
[1768791462149,0.00289674,3205.6,3204.3,4.89786044]
[1768791462348,0.90403001,3205.5,3204.3,4.89786044]
[1768791462549,0.00289674,3205.6,3204.3,4.89786044]
[1768791462748,0.9040179,3205.5,3204.3,4.89786044]
[1768791463050,0.00289674,3205.6,3204.3,4.89786044]
[1768791463250,0.90285507,3205.5,3204.3,4.89786044]
[1768791463453,0.00289674,3205.6,3204.3,4.89786044]
[1768791463653,0.90285383,3205.5,3204.3,4.89786044]
[1768791463952,0.00289674,3205.6,3204.3,4.89786044]
[1768791464155,0.90285383,3205.5,3204.3,4.89786044]
[1768791464354,0.00289674,3205.6,3204.3,4.89786044]
[1768791464548,0.90285032,3205.5,3204.3,4.89786044]
[1768791464751,0.00289674,3205.6,3204.3,4.89786044]
[1768791464950,0.90284513,3205.5,3204.3,4.89786044]
[1768791465151,0.00289674,3205.6,3204.3,4.89786044]
[1768791465458,0.90284513,3205.5,3204.3,4.89786044]
[1768791465660,0.00289674,3205.6,3204.3,4.89786044]
[1768791465852,0.90284237,3205.5,3204.3,4.89786044]
[1768791466049,0.00289674,3205.6,3204.3,4.89786044]
[1768791466346,0.90284289,3205.5,3204.3,4.89786044]
[1768791466545,0.00289674,3205.6,3204.3,4.89786044]
[1768791466747,0.90282902,3205.5,3204.3,4.89786044]
[1768791466959,0.00289674,3205.6,3204.3,4.89786044]
[1768791467262,0.9028349,3205.5,3204.3,4.89786044]
[1768791467560,0.00289674,3205.6,3204.3,4.89786044]
[1768791467762,0.90283913,3205.5,3204.3,4.89786044]
[1768791467955,0.00289674,3205.6,3204.3,4.89786044]
[1768791468253,0.90283966,3205.5,3204.3,4.89786044]
[1768791468453,0.00289674,3205.6,3204.3,4.89786044]
[1768791468662,0.90283737,3205.5,3204.3,4.89786044]
[1768791468855,0.00289674,3205.6,3204.3,4.89786044]
[1768791469051,0.90283737,3205.5,3204.3,4.89786044]
[1768791469261,0.00289674,3205.6,3204.3,4.89786044]
[1768791469462,0.9028331,3205.5,3204.3,4.89786044]
[1768791469759,0.00289674,3205.6,3204.3,4.89786044]
[1768791469960,0.90284109,3205.5,3204.3,4.89786044]
[1768791470161,0.00289674,3205.6,3204.3,4.89786044]
[1768791470364,0.9028415,3205.5,3204.3,4.89786044]
[1768791470664,0.00289674,3205.6,3204.3,4.89786044]
[1768791470861,0.9028418,3205.5,3204.5,1.29888512]
[1768791471061,0.00289674,3205.6,3204.5,1.29888512]
[1768791471257,0.90284245,3205.5,3204.5,1.29888512]
[1768791471453,0.00289674,3205.6,3204.5,1.29888512]
[1768791471656,0.90284324,3205.5,3204.5,1.29888512]
[1768791471956,0.00289674,3205.6,3204.5,1.29888512]
[1768791472165,0.90284378,3205.5,3204.5,1.29888512]
[1768791472460,0.00289674,3205.6,3204.5,1.29888512]
[1768791472662,0.9028495,3205.5,3204.5,1.29888512]
[1768791472858,0.00289674,3205.6,3204.5,1.29888512]